[Event "European Online Club-ch-F 2021"]
[Site "Online"]
[Date "2021.03.27"]
[Round "4.8"]
[White "Cramling, Dan"]
[Black "Apaydin, Fethi"]
[Result "0-1"]
[ECO "A42"]
[WhiteElo "2292"]
[BlackElo "2260"]
[Annotator "NA"]
[PlyCount "114"]
[EventDate "2021.03.27"]
[EventType "team-tourn"]
[EventCountry "NET"]
[SourceTitle "playchess.com"]
[Source "ChessBase"]
[SourceQuality "1"]
[TimeControl "900+5"]

1. d4 {[%emt 0:00:00]} d6 {[%emt 0:00:47]} 2. c4 {[%emt 0:00:04]} e5 {[%emt 0:00:03]} 3. d5 {[%emt 0:00:02]} g6 {[%emt 0:00:21]} 4. Nc3 {[%emt 0:00:05]} Bg7 {[%emt 0:00:03]} 5. e4 {[%emt 0:00:04]} Ne7 {[%emt 0:00:14]} 6. h4 {[%emt 0:00:41]} h6 {[%emt 0:00:11]} 7. h5 {[%emt 0:00:03]} g5 {[%emt 0:00:02]} 8. g4 {[%emt 0:00:03]} c6 {[%emt 0:00:15]} 9. Nh3 {[%emt 0:00:13]} Na6 {[%emt 0:00:34]} 10. Be3 {[%emt 0:00:06]} Bd7 {[%emt 0:00:16]} 11. f3 {[%emt 0:00:04]} Nc7 {[%emt 0:00:24]} 12. Nf2 {[%emt 0:00:15]} c5 {[%emt 0:00:06]} 13. a3 {[%emt 0:00:04]} O-O {[%emt 0:00:24]} 14. b4 {[%emt 0:00:04]} b6 {[%emt 0:00:15]} 15. bxc5 {[%emt 0:00:07]} bxc5 {[%emt 0:00:03]} 16. Bd3 {[%emt 0:00:05]} Rb8 {[%emt 0:00:05]} 17. O-O {[%emt 0:00:05]} Na8 {[%emt 0:00:02]} 18. Bd2 {[%emt 0:00:22]} Nc8 {[%emt 0:01:17]} 19. Qc2 {[%emt 0:00:31]} Ncb6 {[%emt 0:00:05]} 20. Nfd1 {[%emt 0:00:06]} Qc8 {[%emt 0:00:09]} 21. Ne3 {[%emt 0:00:04]} Qd8 {[%emt 0:02:50]} 22. Nb5 {[%emt 0:00:17]} Nxc4 {[%emt 0:00:50]} 23. Bxc4 {[%emt 0:00:51]} Bxb5 {[%emt 0:00:03]} 24. Bxb5 {[%emt 0:00:04]} Rxb5 {[%emt 0:00:01]} 25. Rab1 {[%emt 0:00:02]} Nc7 {[%emt 0:00:09]} 26. a4 {[%emt 0:00:21]} Rb8 {[%emt 0:00:32]} 27. Rxb8 {[%emt 0:00:41]} Qxb8 {[%emt 0:00:03]} 28. Rb1 {[%emt 0:00:01]} Qc8 {[%emt 0:01:48]} 29. Nf5 {[%emt 0:00:44]} Qa6 {[%emt 0:00:11]} 30. Qb3 {[%emt 0:00:52]} Qe2 {[%emt 0:01:13]} 31. Ba5 {[%emt 0:02:14]} Na6 {[%emt 0:01:03]} 32. Rb2 {[%emt 0:05:42]} c4 {[%emt 0:00:16]} 33. Rxe2 {[%emt 0:00:04]} cxb3 {[%emt 0:00:02]} 34. Nxd6 {[%emt 0:00:14]} Rb8 {[%emt 0:00:24]} 35. Nb5 {[%emt 0:00:15]} Nc5 {[%emt 0:00:20]} 36. Bc7 {[%emt 0:00:18]} Rb7 {[%emt 0:00:13]} 37. d6 {[%emt 0:00:27]} Nxa4 {[%emt 0:01:38]} 38. Na3 {[%emt 0:01:25]} Bf6 {[%emt 0:00:15]} 39. Nb1 {[%emt 0:00:10]} Nc5 {[%emt 0:00:16]} 40. Rd2 {[%emt 0:00:12]} Ne6 {[%emt 0:00:08]} 41. Ba5 {[%emt 0:00:04]} Nd4 {[%emt 0:00:02]} 42. Kg2 {[%emt 0:00:08]} Kf8 {[%emt 0:00:03]} 43. Bc3 {[%emt 0:00:09]} Ke8 {[%emt 0:00:04]} 44. Na3 {[%emt 0:00:06]} Kd7 {[%emt 0:00:06]} 45. Rb2 {[%emt 0:00:03]} Kxd6 {[%emt 0:00:06]} 46. Nc4+ {[%emt 0:00:01]} Kc5 {[%emt 0:00:04]} 47. Na5 {[%emt 0:00:10]} Rb5 {[%emt 0:00:04]} 48. Bxd4+ {[%emt 0:00:03]} exd4 {[%emt 0:00:06]} 49. Nxb3+ {[%emt 0:00:01]} Kb6 {[%emt 0:00:13]} 50. Rb1 {[%emt 0:00:02]} a5 {[%emt 0:00:06]} 51. Kf2 {[%emt 0:00:02]} a4 {[%emt 0:00:01]} 52. Nd2 {[%emt 0:00:03]} Rxb1 {[%emt 0:00:03]} 53. Nxb1 {[%emt 0:00:01]} Be7 {[%emt 0:00:02]} 54. Ke2 {[%emt 0:00:05]} a3 {[%emt 0:00:02]} 55. Nd2 {[%emt 0:00:01]} a2 {[%emt 0:00:05]} 56. Nb3 {[%emt 0:00:02]} Bb4 {[%emt 0:00:03]} 57. Kd3 {[%emt 0:00:01]} Bc3 {[%emt 0:00:01]} 0-1

[Event "European Online Club-ch-F 2021"]
[Site "Online"]
[Date "2021.03.27"]
[Round "4.9"]
[White "Gorodetzky, Matan"]
[Black "Gokerkan, Cem Kaan"]
[Result "0-1"]
[ECO "B22"]
[WhiteElo "2253"]
[BlackElo "2470"]
[Annotator "ChessBase"]
[PlyCount "74"]
[EventDate "2021.03.27"]
[EventType "team-tourn"]
[EventCountry "NET"]
[SourceTitle "playchess.com"]
[Source "ChessBase"]
[SourceQuality "1"]
[TimeControl "900+5"]

1. e4 {[%emt 0:00:00]} c5 {[%emt 0:00:03]} 2. c3 {[%emt 0:00:03]} Nf6 {[%emt 0:00:57]} 3. e5 {[%emt 0:00:02]} Nd5 {[%emt 0:00:00]} 4. d4 {[%emt 0:00:01]} cxd4 {[%emt 0:00:01]} 5. cxd4 {[%emt 0:00:02]} d6 {[%emt 0:00:14]} 6. Nf3 {[%emt 0:00:02]} Bd7 {[%emt 0:00:23]} 7. Bc4 {[%emt 0:00:05]} Bc6 {[%emt 0:00:10]} 8. O-O {[%emt 0:00:06]} e6 {[%emt 0:00:02]} 9. Nc3 {[%emt 0:00:10]} Be7 {[%emt 0:00:50]} 10. Ne4 {[%emt 0:00:15]} dxe5 {[%emt 0:00:18]} 11. dxe5 {[%emt 0:00:07]} O-O {[%emt 0:00:15]} 12. Qe2 {[%emt 0:00:21]} Nd7 {[%emt 0:00:07]} 13. b3 {[%emt 0:00:40]} a6 {[%emt 0:00:23]} 14. Bb2 {[%emt 0:00:22]} b5 {[%emt 0:00:14]} 15. Bd3 {[%emt 0:00:04]} Nf4 {[%emt 0:00:16]} 16. Qe3 {[%emt 0:00:46]} Nxd3 {[%emt 0:00:02]} 17. Qxd3 {[%emt 0:00:01]} Nxe5 {[%emt 0:01:23]} 18. Nxe5 {[%emt 0:00:14]} Qxd3 {[%emt 0:00:03]} 19. Nxd3 {[%emt 0:00:01]} Bxe4 {[%emt 0:00:02]} 20. Rfd1 {[%emt 0:00:03]} Rfd8 {[%emt 0:00:07]} 21. Ne5 {[%emt 0:00:11]} f6 {[%emt 0:00:12]} 22. Re1 {[%emt 0:01:03]} Bb7 {[%emt 0:00:08]} 23. Ng4 {[%emt 0:00:19]} Kf7 {[%emt 0:00:06]} 24. Ne3 {[%emt 0:00:30]} Rd2 {[%emt 0:00:07]} 25. Bc3 {[%emt 0:00:05]} Rd3 {[%emt 0:00:02]} 26. Ba5 {[%emt 0:00:15]} Rc8 {[%emt 0:01:04]} 27. Rac1 {[%emt 0:00:04]} Rxc1 {[%emt 0:00:11]} 28. Rxc1 {[%emt 0:00:03]} Rd7 {[%emt 0:00:01]} 29. Kf1 {[%emt 0:00:18]} g5 {[%emt 0:00:06]} 30. Ke2 {[%emt 0:00:21]} f5 {[%emt 0:00:06]} 31. f3 {[%emt 0:00:04]} h5 {[%emt 0:00:05]} 32. h3 {[%emt 0:00:04]} f4 {[%emt 0:00:41]} 33. Nf1 {[%emt 0:00:21]} e5 {[%emt 0:00:07]} 34. Nd2 {[%emt 0:00:13]} Ke6 {[%emt 0:00:01]} 35. Bb6 {[%emt 0:01:05]} Bb4 {[%emt 0:00:11]} 36. Rc2 {[%emt 0:00:03]} Kf5 {[%emt 0:00:34]} 37. Bc5 {[%emt 0:01:07]} Rc7 {[%emt 0:00:56]} 0-1

[Event "European Online Club-ch-F 2021"]
[Site "Online"]
[Date "2021.03.27"]
[Round "4.10"]
[White "Can, Isik"]
[Black "Katkov, Michelle"]
[Result "1-0"]
[ECO "C68"]
[WhiteElo "2380"]
[BlackElo "2078"]
[Annotator "NA"]
[PlyCount "27"]
[EventDate "2021.03.27"]
[EventType "team-tourn"]
[EventCountry "NET"]
[SourceTitle "playchess.com"]
[Source "ChessBase"]
[SourceQuality "1"]
[TimeControl "900+5"]

1. e4 {[%emt 0:00:00]} e5 {[%emt 0:00:02]} 2. Nf3 {[%emt 0:00:03]} Nc6 {[%emt 0:00:03]} 3. Bb5 {[%emt 0:00:03]} a6 {[%emt 0:00:02]} 4. Bxc6 {[%emt 0:00:03]} dxc6 {[%emt 0:00:02]} 5. O-O {[%emt 0:00:02]} Qd6 {[%emt 0:00:02]} 6. Na3 {[%emt 0:00:03]} b5 {[%emt 0:00:16]} 7. c3 {[%emt 0:00:10]} c5 {[%emt 0:00:03]} 8. Nc2 {[%emt 0:00:07]} Bb7 {[%emt 0:00:10]} 9. Re1 {[%emt 0:00:03]} Nf6 {[%emt 0:00:24]} 10. d4 {[%emt 0:00:03]} cxd4 {[%emt 0:00:10]} 11. cxd4 {[%emt 0:00:06]} Bxe4 {[%emt 0:00:39]} 12. Bg5 {[%emt 0:04:39]} Bxf3 {[%emt 0:00:56]} 13. Qxf3 {[%emt 0:00:07]} e4 {[%emt 0:00:04]} 14. Bxf6 {[%emt 0:00:27]} 1-0

[Event "European Online Club-ch-F 2021"]
[Site "Online"]
[Date "2021.03.27"]
[Round "4.11"]
[White "Stolyarsky, Yegor"]
[Black "Ozen, Bahadir"]
[Result "0-1"]
[ECO "A41"]
[WhiteElo "2063"]
[BlackElo "2369"]
[Annotator "NA"]
[PlyCount "54"]
[EventDate "2021.03.27"]
[EventType "team-tourn"]
[EventCountry "NET"]
[SourceTitle "playchess.com"]
[Source "ChessBase"]
[SourceQuality "1"]
[TimeControl "900+5"]

1. d4 {[%emt 0:00:00]} d6 {[%emt 0:00:07]} 2. Nf3 {[%emt 0:00:03]} Bg4 {[%emt 0:00:02]} 3. g3 {[%emt 0:00:06]} Bxf3 {[%emt 0:00:15]} 4. exf3 {[%emt 0:00:01]} c6 {[%emt 0:00:03]} 5. f4 {[%emt 0:00:01]} e6 {[%emt 0:00:11]} 6. h4 {[%emt 0:00:02]} h5 {[%emt 0:00:10]} 7. Bh3 {[%emt 0:00:06]} g6 {[%emt 0:00:07]} 8. c4 {[%emt 0:00:08]} d5 {[%emt 0:00:21]} 9. O-O {[%emt 0:00:04]} Bg7 {[%emt 0:00:17]} 10. Nc3 {[%emt 0:00:15]} Ne7 {[%emt 0:00:04]} 11. Re1 {[%emt 0:00:10]} O-O {[%emt 0:00:04]} 12. Be3 {[%emt 0:00:04]} dxc4 {[%emt 0:00:53]} 13. Ne4 {[%emt 0:00:10]} Nd7 {[%emt 0:00:04]} 14. Ng5 {[%emt 0:00:09]} Nf5 {[%emt 0:00:11]} 15. g4 {[%emt 0:00:13]} hxg4 {[%emt 0:00:03]} 16. Qxg4 {[%emt 0:00:03]} Nf6 {[%emt 0:00:02]} 17. Qe2 {[%emt 0:00:13]} b5 {[%emt 0:00:32]} 18. Kh2 {[%emt 0:00:30]} Nxd4 {[%emt 0:00:36]} 19. Bxd4 {[%emt 0:00:34]} Qxd4 {[%emt 0:00:02]} 20. Ne4 {[%emt 0:00:50]} Nxe4 {[%emt 0:00:05]} 21. Qxe4 {[%emt 0:00:01]} Qxf2+ {[%emt 0:00:15]} 22. Kh1 {[%emt 0:00:19]} Qxh4 {[%emt 0:00:04]} 23. Re3 {[%emt 0:00:02]} Rad8 {[%emt 0:00:11]} 24. Rg1 {[%emt 0:00:08]} Rd4 {[%emt 0:01:01]} 25. Qxc6 {[%emt 0:00:25]} Rxf4 {[%emt 0:00:02]} 26. Qxb5 {[%emt 0:00:12]} Bd4 {[%emt 0:00:08]} 27. Reg3 {[%emt 0:01:02]} Bxg1 {[%emt 0:00:10]} 0-1

[Event "European Online Club-ch-F 2021"]
[Site "Online"]
[Date "2021.03.27"]
[Round "4.12"]
[White "Kamer, Kayra"]
[Black "Gleizer, Adar"]
[Result "1-0"]
[ECO "C77"]
[WhiteElo "2339"]
[BlackElo "1833"]
[Annotator "NA"]
[PlyCount "85"]
[EventDate "2021.03.27"]
[EventType "team-tourn"]
[EventCountry "NET"]
[SourceTitle "playchess.com"]
[Source "ChessBase"]
[SourceQuality "1"]
[TimeControl "900+5"]

1. e4 {[%emt 0:00:00]} e5 {[%emt 0:00:05]} 2. Nf3 {[%emt 0:00:02]} Nc6 {[%emt 0:00:02]} 3. Bb5 {[%emt 0:00:02]} a6 {[%emt 0:00:05]} 4. Ba4 {[%emt 0:00:02]} Nf6 {[%emt 0:00:03]} 5. Bxc6 {[%emt 0:00:03]} dxc6 {[%emt 0:00:02]} 6. d3 {[%emt 0:00:01]} Bd6 {[%emt 0:00:05]} 7. Nbd2 {[%emt 0:00:03]} Be6 {[%emt 0:00:11]} 8. b3 {[%emt 0:00:03]} Nd7 {[%emt 0:00:13]} 9. Bb2 {[%emt 0:00:04]} Qf6 {[%emt 0:00:18]} 10. Qe2 {[%emt 0:00:38]} O-O-O {[%emt 0:00:31]} 11. O-O-O {[%emt 0:00:18]} Qe7 {[%emt 0:00:09]} 12. Kb1 {[%emt 0:00:04]} Ba3 {[%emt 0:00:17]} 13. Ba1 {[%emt 0:00:13]} f6 {[%emt 0:00:03]} 14. h3 {[%emt 0:00:24]} Nb6 {[%emt 0:01:45]} 15. d4 {[%emt 0:00:12]} exd4 {[%emt 0:00:20]} 16. Nxd4 {[%emt 0:00:08]} Rhe8 {[%emt 0:00:15]} 17. Rhe1 {[%emt 0:00:06]} Qb4 {[%emt 0:01:06]} 18. Nxe6 {[%emt 0:01:10]} Rxe6 {[%emt 0:00:02]} 19. Qg4 {[%emt 0:00:07]} Rde8 {[%emt 0:00:43]} 20. Nf3 {[%emt 0:00:45]} Na4 {[%emt 0:01:01]} 21. Re3 {[%emt 0:00:12]} h5 {[%emt 0:00:20]} 22. Qf5 {[%emt 0:00:14]} c5 {[%emt 0:01:09]} 23. e5 {[%emt 0:01:46]} Kb8 {[%emt 0:00:26]} 24. Qe4 {[%emt 0:01:31]} c4 {[%emt 0:00:06]} 25. Rd4 {[%emt 0:01:32]} Nc5 {[%emt 0:01:54]} 26. Qd5 {[%emt 0:00:18]} fxe5 {[%emt 0:02:36]} 27. Rxc4 {[%emt 0:01:14]} Qb6 {[%emt 0:01:02]} 28. Bxe5 {[%emt 0:00:26]} R8e7 {[%emt 0:01:26]} 29. Bd4 {[%emt 0:01:02]} Rxe3 {[%emt 0:00:42]} 30. fxe3 {[%emt 0:00:04]} Rd7 {[%emt 0:00:16]} 31. Qxd7 {[%emt 0:00:09]} Nxd7 {[%emt 0:00:16]} 32. Bxb6 {[%emt 0:00:02]} Nxb6 {[%emt 0:00:01]} 33. Rd4 {[%emt 0:00:09]} Kc8 {[%emt 0:00:04]} 34. c4 {[%emt 0:00:09]} Nd7 {[%emt 0:00:03]} 35. Kc2 {[%emt 0:00:05]} Bc5 {[%emt 0:00:03]} 36. Rd5 {[%emt 0:00:07]} Bxe3 {[%emt 0:00:05]} 37. Rxh5 {[%emt 0:00:02]} Nf6 {[%emt 0:00:04]} 38. Rf5 {[%emt 0:00:12]} Kd7 {[%emt 0:00:05]} 39. Kd3 {[%emt 0:00:04]} Bc1 {[%emt 0:00:11]} 40. g4 {[%emt 0:00:03]} Ke6 {[%emt 0:00:03]} 41. Nd4+ {[%emt 0:00:04]} Ke7 {[%emt 0:00:05]} 42. Rf1 {[%emt 0:00:09]} Nd7 {[%emt 0:00:06]} 43. Rxc1 {[%emt 0:00:03]} 1-0

[Event "European Online Club-ch-F 2021"]
[Site "Online"]
[Date "2021.03.27"]
[Round "4.15"]
[White "Van Wely, Loek"]
[Black "Druska, Juraj"]
[Result "0-1"]
[ECO "D36"]
[WhiteElo "2620"]
[BlackElo "2495"]
[Annotator "ChessBase"]
[PlyCount "68"]
[EventDate "2021.03.27"]
[EventType "team-tourn"]
[EventCountry "NET"]
[SourceTitle "playchess.com"]
[Source "ChessBase"]
[SourceQuality "1"]
[TimeControl "900+5"]

1. d4 {[%emt 0:00:00]} d5 {[%emt 0:00:06]} 2. c4 {[%emt 0:00:03]} e6 {[%emt 0:00:02]} 3. Nc3 {[%emt 0:00:05]} Nf6 {[%emt 0:00:02]} 4. cxd5 {[%emt 0:00:03]} exd5 {[%emt 0:00:02]} 5. Bg5 {[%emt 0:00:02]} c6 {[%emt 0:00:02]} 6. e3 {[%emt 0:00:03]} Bd6 {[%emt 0:00:01]} 7. Bd3 {[%emt 0:00:05]} O-O {[%emt 0:00:02]} 8. Qc2 {[%emt 0:00:12]} h6 {[%emt 0:00:03]} 9. Bh4 {[%emt 0:00:02]} Re8 {[%emt 0:00:01]} 10. Nge2 {[%emt 0:00:43]} Nbd7 {[%emt 0:00:07]} 11. h3 {[%emt 0:00:09]} Nf8 {[%emt 0:00:03]} 12. O-O-O {[%emt 0:00:13]} b5 {[%emt 0:00:10]} 13. Kb1 {[%emt 0:00:04]} a5 {[%emt 0:00:18]} 14. g4 {[%emt 0:00:05]} a4 {[%emt 0:00:47]} 15. g5 {[%emt 0:00:23]} Nh5 {[%emt 0:01:14]} 16. Rhg1 {[%emt 0:00:15]} Ne6 {[%emt 0:00:49]} 17. f4 {[%emt 0:01:46]} hxg5 {[%emt 0:00:29]} 18. Bxg5 {[%emt 0:00:29]} Qa5 {[%emt 0:07:21]} 19. Ng3 {[%emt 0:02:09]} Nxg3 {[%emt 0:00:53]} 20. Rxg3 {[%emt 0:00:00]} b4 {[%emt 0:01:44]} 21. Qg2 {[%emt 0:01:35]} bxc3 {[%emt 0:01:02]} 22. Bf6 {[%emt 0:01:33]} Bf8 {[%emt 0:00:03]} 23. Rg1 {[%emt 0:00:44]} Rb8 {[%emt 0:00:35]} 24. Kc1 {[%emt 0:02:12]} Rxb2 {[%emt 0:00:05]} 25. Rxg7+ {[%emt 0:00:15]} Nxg7 {[%emt 0:00:35]} 26. Qxg7+ {[%emt 0:00:05]} Bxg7 {[%emt 0:00:03]} 27. Rxg7+ {[%emt 0:00:01]} Kf8 {[%emt 0:00:01]} 28. Bh7 {[%emt 0:00:04]} Rb1+ {[%emt 0:00:13]} 29. Bxb1 {[%emt 0:00:40]} c2 {[%emt 0:00:20]} 30. Bxc2 {[%emt 0:00:08]} Qe1+ {[%emt 0:00:03]} 31. Kb2 {[%emt 0:00:02]} Bf5 {[%emt 0:00:08]} 32. Bxf5 {[%emt 0:00:28]} Rxe3 {[%emt 0:00:05]} 33. Rh7 {[%emt 0:00:20]} a3+ {[%emt 0:00:03]} 34. Kc2 {[%emt 0:00:03]} Rc3# {[%emt 0:00:03]} 0-1

[Event "European Online Club-ch-F 2021"]
[Site "Online"]
[Date "2021.03.27"]
[Round "4.16"]
[White "Jablonicky, Martin"]
[Black "Hamdouchi, Hicham"]
[Result "1-0"]
[ECO "B33"]
[WhiteElo "2298"]
[BlackElo "2561"]
[Annotator "ChessBase"]
[PlyCount "159"]
[EventDate "2021.03.27"]
[EventType "team-tourn"]
[EventCountry "NET"]
[SourceTitle "playchess.com"]
[Source "ChessBase"]
[SourceQuality "1"]
[TimeControl "900+5"]

1. e4 {[%emt 0:00:00]} c5 {[%emt 0:00:04]} 2. Nf3 {[%emt 0:00:12]} Nc6 {[%emt 0:00:02]} 3. d4 {[%emt 0:00:24]} cxd4 {[%emt 0:00:02]} 4. Nxd4 {[%emt 0:00:02]} Qb6 {[%emt 0:00:02]} 5. Nb3 {[%emt 0:00:09]} Nf6 {[%emt 0:00:02]} 6. Nc3 {[%emt 0:00:05]} e6 {[%emt 0:00:01]} 7. Bd3 {[%emt 0:02:18]} a6 {[%emt 0:00:09]} 8. O-O {[%emt 0:00:05]} Be7 {[%emt 0:00:10]} 9. Kh1 {[%emt 0:00:13]} Qc7 {[%emt 0:00:12]} 10. f4 {[%emt 0:00:16]} d6 {[%emt 0:00:01]} 11. a4 {[%emt 0:00:26]} b6 {[%emt 0:00:12]} 12. f5 {[%emt 0:00:24]} exf5 {[%emt 0:01:16]} 13. Bg5 {[%emt 0:03:34]} Nb4 {[%emt 0:00:19]} 14. Nd4 {[%emt 0:00:59]} fxe4 {[%emt 0:06:45]} 15. Nxe4 {[%emt 0:01:30]} Nxd3 {[%emt 0:02:39]} 16. Qxd3 {[%emt 0:01:24]} Nxe4 {[%emt 0:01:16]} 17. Qxe4 {[%emt 0:00:20]} Bb7 {[%emt 0:00:14]} 18. Qe2 {[%emt 0:02:05]} f6 {[%emt 0:00:09]} 19. Ne6 {[%emt 0:00:16]} Qc6 {[%emt 0:00:19]} 20. Nxg7+ {[%emt 0:00:23]} Kd7 {[%emt 0:00:05]} 21. Rae1 {[%emt 0:00:29]} Kc8 {[%emt 0:02:22]} 22. Qg4+ {[%emt 0:00:05]} Kb8 {[%emt 0:00:01]} 23. Bf4 {[%emt 0:00:33]} h5 {[%emt 0:00:16]} 24. Qg6 {[%emt 0:00:16]} Bd8 {[%emt 0:00:07]} 25. Nf5 {[%emt 0:00:21]} Ka7 {[%emt 0:00:06]} 26. Nxd6 {[%emt 0:00:07]} Bc7 {[%emt 0:00:06]} 27. Nxb7 {[%emt 0:00:03]} Rag8 {[%emt 0:00:07]} 28. Qe4 {[%emt 0:00:03]} Qxe4 {[%emt 0:00:04]} 29. Rxe4 {[%emt 0:00:03]} Bxf4 {[%emt 0:00:02]} 30. Rfxf4 {[%emt 0:00:04]} Kxb7 {[%emt 0:00:02]} 31. Re7+ {[%emt 0:00:02]} Kc8 {[%emt 0:00:11]} 32. Rxf6 {[%emt 0:00:05]} Re8 {[%emt 0:00:02]} 33. Rxe8+ {[%emt 0:00:05]} Rxe8 {[%emt 0:00:02]} 34. h3 {[%emt 0:00:02]} Kc7 {[%emt 0:00:04]} 35. Rf2 {[%emt 0:00:05]} Re4 {[%emt 0:00:06]} 36. b3 {[%emt 0:00:03]} h4 {[%emt 0:00:01]} 37. Kh2 {[%emt 0:00:02]} Kd6 {[%emt 0:00:02]} 38. g3 {[%emt 0:00:02]} hxg3+ {[%emt 0:00:03]} 39. Kxg3 {[%emt 0:00:02]} Re3+ {[%emt 0:00:03]} 40. Kg4 {[%emt 0:00:03]} Ke5 {[%emt 0:00:14]} 41. h4 {[%emt 0:00:07]} Re1 {[%emt 0:00:04]} 42. Rh2 {[%emt 0:00:06]} Rg1+ {[%emt 0:00:15]} 43. Kf3 {[%emt 0:00:02]} Rg6 {[%emt 0:00:02]} 44. h5 {[%emt 0:00:02]} Rh6 {[%emt 0:00:02]} 45. Kg4 {[%emt 0:00:02]} Kf6 {[%emt 0:00:02]} 46. Rf2+ {[%emt 0:00:02]} Kg7 {[%emt 0:00:02]} 47. Kg5 {[%emt 0:00:16]} Rc6 {[%emt 0:00:02]} 48. Rh2 {[%emt 0:00:07]} Rc5+ {[%emt 0:00:03]} 49. Kf4 {[%emt 0:00:02]} Kh6 {[%emt 0:00:03]} 50. Ke4 {[%emt 0:00:02]} a5 {[%emt 0:00:24]} 51. Kd4 {[%emt 0:00:07]} Rg5 {[%emt 0:00:03]} 52. Kc4 {[%emt 0:00:07]} Rf5 {[%emt 0:00:03]} 53. c3 {[%emt 0:00:06]} Rc5+ {[%emt 0:00:04]} 54. Kd4 {[%emt 0:00:02]} Rg5 {[%emt 0:00:02]} 55. b4 {[%emt 0:00:02]} Rg4+ {[%emt 0:00:02]} 56. Kd5 {[%emt 0:00:26]} axb4 {[%emt 0:00:01]} 57. c4 {[%emt 0:00:02]} b3 {[%emt 0:00:16]} 58. Rb2 {[%emt 0:00:07]} Rg3 {[%emt 0:00:13]} 59. Kc6 {[%emt 0:00:05]} Rc3 {[%emt 0:00:04]} 60. Kb5 {[%emt 0:00:05]} Kxh5 {[%emt 0:00:05]} 61. Kb4 {[%emt 0:00:02]} Re3 {[%emt 0:00:02]} 62. Rxb3 {[%emt 0:00:03]} Re5 {[%emt 0:00:03]} 63. Rd3 {[%emt 0:00:03]} Kg4 {[%emt 0:00:03]} 64. Rd6 {[%emt 0:00:07]} Re1 {[%emt 0:00:05]} 65. Rxb6 {[%emt 0:00:02]} Ra1 {[%emt 0:00:04]} 66. Rd6 {[%emt 0:00:06]} Kf5 {[%emt 0:00:02]} 67. c5 {[%emt 0:00:02]} Ke5 {[%emt 0:00:03]} 68. Rd8 {[%emt 0:00:04]} Rb1+ {[%emt 0:00:03]} 69. Kc4 {[%emt 0:00:02]} Ke6 {[%emt 0:00:03]} 70. c6 {[%emt 0:00:11]} Ke7 {[%emt 0:00:02]} 71. Rd2 {[%emt 0:00:06]} Rc1+ {[%emt 0:00:04]} 72. Kb5 {[%emt 0:00:02]} Rb1+ {[%emt 0:00:01]} 73. Kc5 {[%emt 0:00:02]} Rc1+ {[%emt 0:00:02]} 74. Kb6 {[%emt 0:00:02]} Ra1 {[%emt 0:00:02]} 75. a5 {[%emt 0:00:05]} Rb1+ {[%emt 0:00:01]} 76. Kc7 {[%emt 0:00:02]} Ra1 {[%emt 0:00:02]} 77. Re2+ {[%emt 0:00:03]} Kf7 {[%emt 0:00:02]} 78. Kb7 {[%emt 0:00:23]} Rb1+ {[%emt 0:00:05]} 79. Kc8 {[%emt 0:00:06]} Ra1 {[%emt 0:00:02]} 80. c7 {[%emt 0:00:14]} 1-0